lending/lending_fUSD_20260312
["ID","MTS","AMOUNT","RATE_DAILY","PERIOD"]
[408288707,1773355842371,-972.83,0.00015326,2]
[408288708,1773355842380,-500.0,0.00015434,2]
[408288709,1773355842389,-255.0,0.00015536,2]
[408288710,1773355842399,-170.962384,0.00015543,2]
[408288711,1773355842408,-621.69234867,0.0001555,2]
[408288712,1773355842418,-500.0,0.0001555,2]
[408288713,1773355842427,-500.0,0.0001555,2]
[408288714,1773355842436,-500.0,0.0001555,2]
[408288715,1773355842445,-500.0,0.0001555,2]
[408288716,1773355842454,-500.0,0.0001555,2]
[408288717,1773355842473,-500.0,0.00015588,2]
[408288718,1773355842486,-338.73579569,0.00015588,2]
[408288719,1773355842499,-500.19685753,0.00015588,2]
[408288720,1773355842511,-500.0,0.00015588,2]
[408288721,1773355842523,-210.26061864,0.00015588,2]
[408288722,1773355842533,-500.0,0.00015588,2]
[408288723,1773355842544,-200.0,0.000156,2]
[408288724,1773355842554,-972.83,0.000156,2]
[408288725,1773355842565,-13904.85917924,0.00015632,2]
[408288726,1773355842576,-1500.0,0.00015668,2]
[408288727,1773355842587,-1500.0,0.00015668,2]
[408288728,1773355842598,-860.72006406,0.00015668,2]
[408288729,1773355842608,-1500.0,0.00015668,2]
[408288730,1773355842620,-1393.08543644,0.00015668,2]
[408288731,1773355842631,-1500.0,0.00015668,2]
[408288732,1773355842642,-1500.0,0.00015668,2]
[408288733,1773355842652,-500.0,0.00015668,2]
[408288734,1773355842663,-1500.0,0.00015668,2]
[408288735,1773355842674,-420.0,0.00015674,2]
[408288736,1773355842686,-183.79,0.00015704,3]
[408288737,1773355842697,-1680.0,0.00015743,2]
[408288738,1773355842708,-500.0,0.00015744,2]
[408288739,1773355842719,-5000.0,0.00015744,2]
[408288740,1773355842730,-420.0,0.00015745,2]
[408288741,1773355842740,-1417.27,0.00015753,2]
[408288742,1773355842751,-300.0,0.00015815,2]
[408288743,1773355842761,-300.0,0.00015815,2]
[408288744,1773355842771,-600.0,0.00015815,2]
[408288745,1773355842782,-300.0,0.00015815,2]
[408288746,1773355842793,-5000.0,0.00015815,2]
[408288748,1773355842804,-225.2267,0.00015815,2]
[408288750,1773355842814,-600.0,0.00015815,2]
[408288752,1773355842825,-5000.0,0.00015815,2]
[408288754,1773355842837,-250.0,0.00015815,2]
[408288757,1773355842848,-500.0,0.00015815,2]
[408288759,1773355842861,-168.31078242,0.0001583,2]
[408288760,1773355842871,-972.83,0.00015874,2]
[408288761,1773355842882,-3173.57426313,0.0001596,2]
[408288762,1773355842893,-501.01772395,0.00016098,2]
[408288763,1773355842905,-1000.0,0.00016098,2]
[408288764,1773355842916,-1000.0,0.00016098,2]
[408288765,1773355842928,-299.99,0.00016116,4]
[408288767,1773355842938,-9999.99,0.00016116,2]
[408288769,1773355842948,-150.99,0.00016116,2]
[408288771,1773355842958,-1000.0,0.00016135,2]
[408288772,1773355842968,-1000.0,0.00016135,2]
[408288774,1773355842981,-500.0,0.00016137,2]
[408288777,1773355842991,-972.83,0.00016148,2]
[408288779,1773355843003,-16177.20316587,0.00016175,2]
[408288780,1773355843015,-1041.97622613,0.00016216,2]
[408288781,1773355843026,-2000.0,0.00016216,2]
[408288782,1773355843037,-526.17740878,0.00016216,2]
[408288784,1773355843049,-2000.0,0.00016216,2]
[408288785,1773355843059,-2000.0,0.00016216,2]
[408288786,1773355843069,-2000.0,0.00016216,2]
[408288787,1773355843080,-13904.85917924,0.00016242,2]
[408288788,1773355843090,-500.0,0.00016329,2]
[408288789,1773355843101,-972.83,0.00016422,2]
[408288790,1773355843112,-484.21,0.00016438,2]
[408288791,1773355843124,-1417.27,0.00016438,2]
[408288792,1773355843138,-1500.0,0.00016646,2]
[408288793,1773355843149,-1000.0,0.00016646,2]
[408288794,1773355843161,-1500.0,0.00016683,2]
[408288795,1773355843171,-1000.0,0.00016683,2]
[408288796,1773355843183,-972.83,0.00016696,2]
[408288797,1773355843194,-166.54,0.00016712,2]
[408288798,1773355843205,-170.0,0.00016746,2]
[408288799,1773355843215,-2500.0,0.00016764,2]
[408288800,1773355843225,-1004.59959812,0.00016764,2]
[408288801,1773355843235,-2003.02080856,0.00016764,2]
[408288802,1773355843245,-16177.20316587,0.00016796,2]
[408288803,1773355843255,-13904.85917924,0.00016852,2]
[408288804,1773355843265,-500.0,0.00016907,2]
[408288805,1773355843275,-500.0,0.00016907,2]
[408288806,1773355843287,-500.0,0.00016907,2]
[408288807,1773355843304,-500.0,0.00016907,2]
[408288808,1773355843316,-500.0,0.00016907,2]
[408288809,1773355843327,-500.0,0.00016907,2]
[408288810,1773355843338,-500.0,0.00016907,2]
[408288812,1773355843348,-500.0,0.00016907,2]
[408288814,1773355843360,-500.0,0.00016907,2]
[408288815,1773355843370,-500.0,0.00016907,2]
[408288817,1773355843380,-500.0,0.00016907,2]
[408288819,1773355843390,-972.83,0.0001697,2]
[408288820,1773355843401,-300.0,0.00017,2]
[408288821,1773355843412,-507.0,0.00017,2]
[408288822,1773355843424,-587.0,0.00017167,2]
[408288823,1773355843436,-234.92571798,0.00017187,2]
[408288824,1773355843448,-168.31078242,0.00017187,2]
[408288825,1773355843458,-2000.0,0.00017194,2]
[408288826,1773355843469,-2000.0,0.00017231,2]
[408288827,1773355843480,-587.0,0.00017243,2]
[408288828,1773355843490,-972.83,0.00017244,2]
[408288829,1773355843500,-500.0,0.0001726,2]
[408288830,1773355843510,-3000.0,0.00017312,2]
[408288831,1773355843521,-2351.0,0.00017317,2]
[408288832,1773355843531,-16177.20316587,0.00017417,2]
[408288833,1773355843542,-595.88,0.00017461,2]
[408288834,1773355843552,-500.0,0.00017461,2]
[408288835,1773355843562,-13904.85917924,0.00017461,2]
[408288836,1773355843573,-1832.43,0.00017463,2]
[408288837,1773355843583,-305.37,0.00017493,2]
[408288838,1773355843593,-972.84738103,0.00017518,2]
[408288839,1773355843603,-165.56,0.0001753,2]
[408288840,1773355843614,-161.59385456,0.00017655,2]
[408288841,1773355843624,-500.0,0.00017655,2]
[408288842,1773355843635,-500.0,0.00017675,2]
[408288843,1773355843645,-500.0,0.00017675,2]
[408288844,1773355843655,-150.0,0.00017675,2]
[408288845,1773355843666,-500.0,0.00017675,2]
[408288846,1773355843676,-500.0,0.00017675,2]
[408288847,1773355843686,-500.0,0.00017675,2]
[408288848,1773355843698,-500.0,0.00017675,2]
[408288849,1773355843708,-500.0,0.00017675,2]
[408288850,1773355843720,-500.0,0.00017675,2]
[408288851,1773355843731,-150.0,0.00017675,2]
[408288852,1773355843741,-150.0,0.00017675,2]
[408288853,1773355843752,-500.0,0.00017675,2]
[408288854,1773355843762,-150.0,0.00017675,2]
[408288855,1773355843772,-500.0,0.00017675,2]
[408288856,1773355843782,-500.0,0.00017675,2]
[408288857,1773355843792,-500.0,0.00017675,2]
[408288858,1773355843802,-500.0,0.00017675,2]
[408288859,1773355843812,-504.0,0.00017675,2]
[408288860,1773355843822,-500.0,0.00017675,2]
[408288861,1773355843833,-500.0,0.00017675,2]
[408288862,1773355843843,-500.0,0.00017675,2]
[408288863,1773355843853,-500.0,0.00017675,2]
[408288864,1773355843863,-150.0,0.00017675,2]
[408288865,1773355843873,-500.0,0.00017675,2]
[408288866,1773355843883,-500.0,0.00017675,2]
[408288867,1773355843894,-500.0,0.00017675,2]
[408288868,1773355843904,-150.0,0.00017675,2]
[408288869,1773355843913,-150.0,0.00017675,2]
[408288870,1773355843923,-9141.66868721,0.00017677,2]
[408288871,1773355843932,-500.0,0.0001773,2]
[408288872,1773355843942,-500.0,0.0001773,2]
[408288873,1773355843952,-500.0,0.0001773,2]
[408288874,1773355843962,-150.0,0.0001773,2]
[408288875,1773355843972,-500.0,0.0001773,2]
[408288876,1773355843981,-500.0,0.0001773,2]
[408288877,1773355843991,-637.81160901,0.0001773,2]
[408288878,1773355844001,-600.74757442,0.0001773,2]
[408288879,1773355844011,-500.0,0.0001773,2]
[408288880,1773355844021,-150.0,0.0001773,2]
[408288881,1773355844030,-150.0,0.0001773,2]
[408288882,1773355844040,-500.0,0.0001773,2]
[408288883,1773355844050,-150.0,0.0001773,2]
[408288884,1773355844061,-500.0,0.0001773,2]
[408288885,1773355844072,-500.0,0.0001773,2]
[408288886,1773355844082,-501.10057062,0.0001773,2]
[408288887,1773355844092,-500.0,0.0001773,2]
[408288888,1773355844102,-504.0,0.0001773,2]
[408288889,1773355844112,-500.0,0.0001773,2]
[408288890,1773355844122,-500.0,0.0001773,2]
[408288891,1773355844131,-500.0,0.0001773,2]
[408288892,1773355844141,-500.0,0.0001773,2]
[408288893,1773355844152,-150.20209622,0.0001773,2]
[408288894,1773355844162,-500.0,0.0001773,2]
[408288895,1773355844172,-500.0,0.0001773,2]
[408288896,1773355844182,-500.0,0.0001773,2]
[408288897,1773355844191,-2500.0,0.00017742,2]
[408288898,1773355844201,-500.0,0.00017753,2]
[408288899,1773355844211,-500.0,0.00017753,2]
[408288900,1773355844220,-500.0,0.00017753,2]
[408288901,1773355844230,-150.0,0.00017753,2]
[408288902,1773355844240,-500.0,0.00017753,2]
[408288903,1773355844249,-150.0,0.00017753,2]
[408288904,1773355844259,-150.0,0.00017753,2]
[408288905,1773355844269,-150.0,0.00017753,2]
[408288906,1773355844279,-150.0,0.00017753,2]
[408288907,1773355844289,-154.6362155,0.00017753,2]
[408288908,1773355844303,-500.0,0.00017753,2]
[408288909,1773355844313,-500.0,0.00017753,2]
[408288910,1773355844322,-500.0,0.00017753,2]
[408288911,1773355844333,-150.81923528,0.00017753,2]
[408288912,1773355844343,-1056.08878516,0.00017779,2]
[408288913,1773355844353,-500.0,0.00017785,2]
[408288914,1773355844363,-500.0,0.00017785,2]
[408288915,1773355844373,-500.0,0.00017785,2]
[408288916,1773355844383,-500.0,0.00017785,2]
[408288917,1773355844393,-150.0,0.00017785,2]
[408288918,1773355844403,-601.04601421,0.00017785,2]
[408288919,1773355844412,-500.0,0.00017785,2]
[408288920,1773355844422,-150.0,0.00017785,2]
[408288921,1773355844432,-150.0,0.00017785,2]
[408288922,1773355844443,-500.0,0.00017785,2]
[408288923,1773355844453,-150.0,0.00017785,2]
[408288924,1773355844463,-500.0,0.00017785,2]
[408288925,1773355844474,-500.0,0.00017785,2]
[408288926,1773355844484,-151.97192574,0.00017785,2]
[408288927,1773355844493,-504.0,0.00017785,2]
[408288928,1773355844503,-156.83426636,0.00017785,2]
[408288929,1773355844513,-500.0,0.00017785,2]
[408288930,1773355844522,-500.0,0.00017785,2]
[408288931,1773355844720,-500.0,0.00017785,2]
[408288932,1773355844736,-159.8782102,0.00017785,2]
[408288933,1773355844748,-500.0,0.00017785,2]
[408288934,1773355844758,-500.0,0.00017785,2]
[408288935,1773355844767,-150.14054899,0.00017808,2]
[408288936,1773355844776,-500.0,0.00017808,2]
[408288937,1773355844786,-150.38339506,0.00017808,2]
[408288938,1773355844796,-150.0,0.00017808,2]
[408288939,1773355844805,-150.0,0.00017808,2]
[408288940,1773355844815,-150.0,0.00017808,2]
[408288941,1773355844824,-500.0,0.00017808,2]
[408288942,1773355844834,-500.0,0.00017808,2]
[408288943,1773355844844,-500.0,0.00017808,2]
[408288944,1773355844853,-500.0,0.00017808,2]
[408288945,1773355844863,-500.0,0.00017839,2]
[408288946,1773355844873,-500.0,0.00017839,2]
[408288947,1773355844882,-500.0,0.00017839,2]
[408288948,1773355844892,-150.0,0.00017839,2]
[408288949,1773355844901,-500.0,0.00017839,2]
[408288950,1773355844911,-500.0,0.00017839,2]
[408288951,1773355844920,-275.17021168,0.00017839,2]
[408288952,1773355844930,-250.58262965,0.00017839,2]
[408288953,1773355844939,-500.0,0.00017839,2]
[408288954,1773355844948,-150.0,0.00017839,2]
[408288955,1773355844957,-500.0,0.00017839,2]
[408288956,1773355844967,-500.0,0.00017839,2]
[408288957,1773355844977,-504.0,0.00017839,2]
[408288958,1773355844986,-500.0,0.00017839,2]
[408288959,1773355844996,-264.48543571,0.00017839,2]
[408288960,1773355845005,-606.55779082,0.00017839,2]
[408288961,1773355845014,-500.0,0.00017839,2]
[408288962,1773355845023,-500.0,0.00017839,2]
[408288963,1773355845033,-3500.0,0.0001786,2]
[408288964,1773355845043,-500.0,0.00017863,2]
[408288965,1773355845052,-150.0,0.00017863,2]
[408288966,1773355845062,-150.0,0.00017863,2]
[408288967,1773355845071,-200.0,0.00017863,2]
[408288968,1773355845081,-500.0,0.00017863,2]
[408288969,1773355845090,-500.0,0.00017863,2]
[408288970,1773355845099,-500.0,0.00017863,2]
[408288971,1773355845109,-500.0,0.00017863,2]
[408288972,1773355845118,-500.0,0.00017894,2]
[408288973,1773355845128,-500.0,0.00017894,2]
[408288974,1773355845139,-362.33399582,0.00017894,2]
[408288975,1773355845148,-150.51586392,0.00017894,2]
[408288976,1773355845159,-500.0,0.00017894,2]
[408288977,1773355845168,-500.0,0.00017894,2]
[408288978,1773355845178,-500.0,0.00017894,2]
[408288979,1773355845188,-150.0,0.00017894,2]
[408288980,1773355845198,-500.0,0.00017894,2]
[408288981,1773355845207,-150.0,0.00017894,2]
[408288982,1773355845216,-504.0,0.00017894,2]
[408288983,1773355845226,-177.62322685,0.00017894,2]
[408288984,1773355845235,-500.0,0.00017894,2]
[408288985,1773355845245,-500.0,0.00017894,2]
[408288986,1773355845254,-552.0,0.00017917,2]
[408288987,1773355845264,-300.0,0.00017917,2]
[408288988,1773355845273,-300.0,0.00017917,2]
[408288989,1773355845282,-500.0,0.00017918,2]
[408288990,1773355845295,-500.0,0.00017949,2]
[408288991,1773355845304,-500.0,0.00017949,2]
[408288992,1773355845314,-500.0,0.00017949,2]
[408288993,1773355845324,-500.0,0.00017949,2]
[408288994,1773355845335,-500.0,0.00017949,2]
[408288995,1773355845345,-250.0,0.00017949,2]
[408288996,1773355845354,-204.83861542,0.00017949,2]
[408288997,1773355845365,-504.0,0.00017949,2]
[408288998,1773355845374,-500.0,0.00017949,2]
[408288999,1773355845384,-500.0,0.00017949,2]
[408289000,1773355845394,-500.0,0.00017972,2]
[408289001,1773355845405,-500.0,0.00018004,2]
[408289002,1773355845415,-500.0,0.00018004,2]
[408289003,1773355845425,-500.0,0.00018004,2]
[408289004,1773355845435,-500.0,0.00018004,2]
[408289005,1773355845445,-500.0,0.00018004,2]
[408289006,1773355845454,-504.0,0.00018004,2]
[408289007,1773355845464,-556.26148538,0.00018004,2]
[408289008,1773355845474,-500.0,0.00018004,2]
[408289009,1773355845483,-354.90199074,0.00018027,2]
[408289010,1773355845493,-16177.20316587,0.00018038,2]
[408289011,1773355845503,-500.0,0.00018059,2]
[408289012,1773355845514,-500.0,0.00018059,2]
[408289013,1773355845523,-500.0,0.00018059,2]
[408289014,1773355845533,-500.0,0.00018059,2]
[408289015,1773355845543,-500.0,0.00018059,2]
[408289016,1773355845552,-504.0,0.00018059,2]
[408289017,1773355845562,-500.0,0.00018059,2]
[408289018,1773355845572,-13904.85917924,0.00018071,2]
[408289019,1773355845581,-500.0,0.00018113,2]
[408289020,1773355845591,-500.0,0.00018113,2]
[408289021,1773355845601,-500.0,0.00018113,2]
[408289022,1773355845610,-500.0,0.00018113,2]
[408289023,1773355845619,-500.0,0.00018113,2]
[408289024,1773355845628,-504.0,0.00018113,2]
[408289025,1773355845638,-500.0,0.00018113,2]
[408289026,1773355845648,-500.0,0.00018168,2]
[408289027,1773355845657,-336.58574152,0.00018168,2]
[408289028,1773355845667,-267.0,0.00018168,2]
[408289029,1773355845676,-474.0,0.00018168,2]
[408289030,1773355845686,-504.0,0.00018168,2]
[408289031,1773355845695,-500.0,0.00018168,2]
[408289032,1773355845704,-1000.0,0.00018202,2]
[408289033,1773355845714,-500.0,0.00018223,2]
[408289034,1773355845723,-504.0,0.00018223,2]
[408289035,1773355845733,-500.0,0.00018223,2]
[408289036,1773355845742,-500.0,0.00018278,2]
[408289037,1773355845752,-504.0,0.00018278,2]
[408289038,1773355845762,-500.0,0.00018278,2]
[408289039,1773355845771,-541.42320536,0.0001829,2]
[408289040,1773355845781,-500.0,0.00018301,2]
[408289041,1773355845790,-1000.0,0.00018301,2]
[408289042,1773355845799,-500.0,0.00018333,2]
[408289043,1773355845809,-504.0,0.00018333,2]
[408289044,1773355845818,-450.0,0.00018333,2]
[408289045,1773355845827,-222.07,0.00018337,14]
[408289046,1773355845837,-500.0,0.00018355,2]
[408289047,1773355845847,-450.0,0.00018387,2]
[408289048,1773355845856,-504.0,0.00018387,2]
[408289049,1773355845865,-2000.0,0.00018408,2]
[408289050,1773355845875,-504.0,0.00018442,2]
[408289052,1773355845884,-504.0,0.00018497,2]
[408289054,1773355845893,-13682.15,0.00018533,2]
[408289056,1773355845902,-17495.4,0.00018533,2]
[408289058,1773355845912,-160.0,0.00018536,2]
[408289059,1773355845922,-504.0,0.00018552,2]
[408289061,1773355845931,-504.0,0.00018607,2]
[408289062,1773355845940,-16177.20316587,0.00018658,2]
[408289063,1773355845949,-504.0,0.00018661,2]
[408289065,1773355845959,-13904.85917924,0.00018681,2]
[408289066,1773355845967,-504.0,0.00018716,2]
[408289067,1773355845977,-1500.0,0.0001875,2]
[408289068,1773355845985,-222.07,0.00018767,14]
[408289069,1773355845995,-504.0,0.00018771,2]
[408289070,1773355846003,-823.0,0.00018801,2]
[408289071,1773355846012,-504.0,0.00018826,2]
[408289072,1773355846021,-1000.0,0.00018849,2]
[408289073,1773355846031,-504.0,0.0001888,2]
[408289074,1773355846041,-516.0,0.00018935,2]
[408289075,1773355846050,-250.0,0.00018997,2]
[408289076,1773355846060,-350.0,0.00019,2]
[408289077,1773355846070,-305.37,0.00019025,2]
[408289078,1773355846080,-749.0,0.00019048,2]
[408289079,1773355846090,-3292.0,0.00019049,2]
[408289080,1773355846099,-749.0,0.0001907,2]
[408289081,1773355846108,-6400.22,0.00019085,2]
[408289082,1773355846117,-749.0,0.00019141,2]
[408289083,1773355846127,-3000.0,0.00019178,2]
[408289084,1773355846136,-3000.0,0.00019178,2]
[408289085,1773355846145,-2920.4805476,0.00019178,2]
[408289086,1773355846154,-150.0,0.00019231,2]
[408289087,1773355846164,-150.0,0.00019231,2]
[408289088,1773355846174,-500.0,0.00019231,2]
[408289089,1773355846183,-150.0,0.00019231,2]
[408289090,1773355846192,-150.0,0.00019231,2]
[408289091,1773355846202,-150.0,0.00019231,2]
[408289092,1773355846212,-211.07,0.00019231,2]
[408289093,1773355846222,-10000.0,0.00019239,2]
[408289094,1773355846231,-16177.20316587,0.00019279,2]
[408289095,1773355846241,-150.36304931,0.00019286,2]
[408289096,1773355846250,-151.17604602,0.00019286,2]
[408289097,1773355846260,-506.37193097,0.00019286,2]
[408289098,1773355846269,-150.5231356,0.00019286,2]
[408289099,1773355846283,-150.0,0.00019286,2]
[408289100,1773355846294,-206.99792004,0.00019286,2]
[408289101,1773355846306,-13904.85917924,0.0001929,2]
[408289102,1773355846315,-305.57091289,0.00019298,2]
[408289103,1773355846326,-150.0,0.00019341,2]
[408289104,1773355846336,-749.0,0.00019424,2]
[408289106,1773355846345,-1000.0,0.00019441,2]
[408289107,1773355846354,-749.0,0.00019467,2]
[408289109,1773355846363,-507.0,0.0001952,4]
[408289110,1773355846373,-500.0,0.00019599,2]
[408289111,1773355846382,-500.0,0.00019599,2]
[408289112,1773355846392,-500.0,0.00019599,2]
[408289113,1773355846401,-500.0,0.00019599,2]
[408289114,1773355846410,-500.0,0.00019599,2]
[408289115,1773355846419,-500.0,0.00019599,2]
[408289116,1773355846429,-500.0,0.00019599,2]
[408289117,1773355846438,-500.0,0.00019599,2]
[408289118,1773355846447,-500.0,0.00019599,2]
[408289119,1773355846457,-500.0,0.00019599,2]
[408289120,1773355846467,-500.0,0.00019599,2]
[408289121,1773355846476,-749.0,0.00019664,2]
[408289122,1773355846485,-500.0,0.00019699,2]
[408289123,1773355846494,-595.88,0.00019799,2]
[408289124,1773355846504,-258.51798041,0.00019799,2]
[408289125,1773355846513,-22200.0,0.000198,7]
[408289126,1773355846522,-151.0,0.000198,2]
[408289127,1773355846531,-2954.42978653,0.0001981,2]
[408289128,1773355846541,-16177.20316587,0.000199,2]
[408289129,1773355846551,-234.92571798,0.000199,2]
[408289130,1773355846560,-4400.0,0.000199,7]
[408289131,1773355846570,-13904.85917924,0.000199,2]
[408289132,1773355846579,-530.2,0.00019902,2]
[408289133,1773355846589,-19403.09,0.00019902,2]
[408289134,1773355846599,-247.97,0.00019928,2]
[408289135,1773355846607,-500.0,0.00019973,2]
[408289136,1773355846617,-283.69039474,0.00019973,2]
[408289137,1773355846626,-161.35927651,0.00019973,2]
[408289138,1773355846635,-164.24586283,0.00019973,2]
[408289139,1773355846644,-500.0,0.00019973,2]
[408289140,1773355846655,-500.0,0.00019973,2]
[408289141,1773355846664,-164.47026524,0.00019973,2]
[408289142,1773355846673,-500.30661953,0.00019973,2]
[408289143,1773355846682,-500.0,0.00019973,2]
[408289144,1773355846691,-500.0,0.00019973,2]
[408289145,1773355846699,-500.0,0.00019973,2]
[408289146,1773355846709,-500.0,0.00019973,2]
[408289147,1773355846718,-500.0,0.00019973,2]
[408289148,1773355846728,-500.0,0.00019973,2]
[408289149,1773355846737,-500.0,0.00019973,2]
[408289150,1773355846746,-500.0,0.00019973,2]
[408289151,1773355846756,-300.0,0.00019973,2]
[408289152,1773355846765,-500.14102531,0.00019973,2]
[408289153,1773355846774,-500.0,0.00019973,2]
[408289154,1773355846783,-500.0,0.00019973,2]
[408289155,1773355846792,-502.44343779,0.00019973,2]
[408289156,1773355846802,-500.0,0.00019973,2]
[408289157,1773355846811,-500.0,0.00019973,2]
[408289158,1773355846820,-514.09272205,0.00019973,2]
[408289159,1773355846829,-500.0,0.00019973,2]
[408289160,1773355846839,-500.89524145,0.00019973,2]
[408289161,1773355846848,-250.0,0.00019973,2]
[408289162,1773355846857,-500.0,0.00019988,2]
[408289163,1773355846866,-1147.59531883,0.00019994,5]
[408289164,1773355846876,-595.88,0.00019994,2]
[408289165,1773355846886,-595.88,0.00019994,2]
[408289166,1773355846895,-595.88,0.00019994,2]
[408289167,1773355846905,-595.88,0.00019994,2]
[408289168,1773355846915,-595.88,0.00019994,2]
[408289169,1773355846924,-300.0,0.00019994,2]
[408289170,1773355846933,-666.0,0.00019994,2]
[408289171,1773355846942,-818832.8009158,0.00019995,2]
[408289172,1773355846951,-24285.701786,0.00019995,2]
[408289173,1773355846961,-223067.4105007,0.00019995,2]
[408289174,1773355846970,-1003.8236336,0.00019995,2]
[408289175,1773355846980,-75605.8883649,0.00019995,2]
[408289176,1773355846989,-20634.1495121,0.00019995,2]
[408289177,1773355846998,-151.0,0.00019995,2]
[408289178,1773355847007,-151.0,0.00019995,2]
[408289179,1773355847016,-151.0,0.00019995,2]
[408289180,1773355847025,-151.0,0.00019995,2]
[408289181,1773355847034,-151.0,0.00019995,2]
[408289182,1773355847043,-151.0,0.00019995,2]
[408289183,1773355847052,-5000.0,0.00019995,2]
[408289184,1773355847061,-5000.0,0.00019995,2]
[408289185,1773355847071,-5000.0,0.00019995,2]
[408289186,1773355847080,-5000.0,0.00019995,2]
[408289187,1773355847089,-5000.0,0.00019995,2]
[408289188,1773355847098,-5000.0,0.00019995,2]
[408289189,1773355847108,-5000.0,0.00019995,2]
[408289190,1773355847118,-3579.362274,0.00019995,2]
[408289191,1773355847128,-151.0,0.00019995,2]
[408289192,1773355847139,-151.0,0.00019997,2]
[408289193,1773355847148,-229.15310187,0.00019999,2]
[408289194,1773355847158,-300.0,0.00019999,2]
[408289195,1773355847167,-666.0,0.00019999,2]
[408289196,1773355847177,-300.0,0.00019999,2]
[408289197,1773355847186,-666.0,0.00019999,2]
[408289198,1773355847196,-500.0,0.00019999,2]
[408289199,1773355847205,-500.0,0.00019999,2]
[408289200,1773355847214,-490.60783479,0.00019999,2]
[408289201,1773355847224,-500.0,0.00019999,2]
[408289202,1773355847233,-500.0,0.00019999,2]
[408289203,1773355847242,-500.0,0.00019999,2]
[408289204,1773355847252,-500.0,0.00019999,2]
[408289205,1773355847262,-379.87622483,0.00019999,2]
[408289206,1773355847271,-500.0,0.00019999,2]
[408289207,1773355847280,-500.0,0.00019999,2]
[408289208,1773355847290,-500.0,0.00019999,2]
[408289209,1773355847303,-500.0,0.00019999,2]
[408289210,1773355847312,-500.0,0.00019999,2]
[408289211,1773355847321,-500.0,0.00019999,2]
[408289212,1773355847331,-500.0,0.00019999,2]
[408289213,1773355847342,-500.0,0.00019999,2]
[408289214,1773355847351,-500.0,0.00019999,2]
[408289215,1773355847361,-500.0,0.00019999,2]
[408289216,1773355847372,-500.0,0.00019999,2]
[408289217,1773355847381,-500.0,0.00019999,2]
[408289218,1773355847391,-500.0,0.00019999,2]
[408289219,1773355847400,-586.04621402,0.00019999,2]
[408289220,1773355847410,-566.79968015,0.00019999,2]
[408289221,1773355847419,-514.75306544,0.00019999,2]
[408289222,1773355847428,-500.0,0.00019999,2]
[408289223,1773355847438,-500.0,0.00019999,2]
[408289224,1773355847447,-500.0,0.00019999,2]
[408289225,1773355847456,-500.0,0.00019999,2]
[408289226,1773355847467,-500.0,0.00019999,2]
[408289227,1773355847478,-646.2283814,0.00019999,2]
[408289228,1773355847488,-500.0,0.00019999,2]
[408289229,1773355847499,-500.0,0.00019999,2]
[408289230,1773355847508,-500.0,0.00019999,2]
[408289231,1773355847518,-500.0,0.00019999,2]
[408289232,1773355847527,-500.0,0.00019999,2]
[408289233,1773355847536,-500.0,0.00019999,2]